[Event "December 12 Late 2023"]
[Site "https://www.chess.com"]
[Date "2023.12.12"]
[Round "4"]
[White "Tokat, Nehir"]
[Black "Ladan, Nicholas"]
[Result "0-1"]
[Board "121"]
[TimeControl "180+1"]
[WhiteFideId "34557555"]
[BlackFideId "30918855"]
[WhiteElo "2176"]
[BlackElo "2449"]
[WhiteTeam "TUR"]
[BlackTeam "USA"]
[WhiteClock "0:00:00"]
[BlackClock "0:00:11"]

1. d4 {[%clk 0:03:00]}  d5 {[%clk 0:03:00]} 2. c4 {[%clk 0:02:58]}  e6 {[%clk 0:03:00]} 3. Nf3 {[%clk 0:02:56]}  Nf6 {[%clk 0:02:59]} 4. g3 {[%clk 0:02:54]}  Bb4+ {[%clk 0:02:58]} 5. Bd2 {[%clk 0:02:49]}  a5 {[%clk 0:02:57]} 6. Bg2 {[%clk 0:02:45]}  O-O {[%clk 0:02:56]} 7. O-O {[%clk 0:02:42]}  Be7 {[%clk 0:02:57]} 8. Nc3 {[%clk 0:02:35]}  dxc4 {[%clk 0:02:55]} 9. Bf4 {[%clk 0:02:23]}  c6 {[%clk 0:02:47]} 10. a4 {[%clk 0:02:22]}  Nd5 {[%clk 0:02:44]} 11. Qd2 {[%clk 0:02:12]}  Nxf4 {[%clk 0:02:40]} 12. Qxf4 {[%clk 0:02:13]}  Nd7 {[%clk 0:02:39]} 13. Rac1 {[%clk 0:02:10]}  Nf6 {[%clk 0:02:26]} 14. h4 {[%clk 0:02:03]}  Nd5 {[%clk 0:02:23]} 15. Qd2 {[%clk 0:02:02]}  Bb4 {[%clk 0:02:22]} 16. e4 {[%clk 0:01:52]}  Nb6 {[%clk 0:02:14]} 17. Ra1 {[%clk 0:01:42]}  Bd7 {[%clk 0:02:09]} 18. Ne5 {[%clk 0:01:37]}  f6 {[%clk 0:02:02]} 19. Nxd7 {[%clk 0:01:12]}  Qxd7 {[%clk 0:02:03]} 20. Rfd1 {[%clk 0:01:10]}  Rad8 {[%clk 0:02:01]} 21. Qe3 {[%clk 0:01:07]}  Rfe8 {[%clk 0:01:57]} 22. Bh3 {[%clk 0:01:05]}  Qc7 {[%clk 0:01:52]} 23. Ne2 {[%clk 0:00:56]}  c5 {[%clk 0:01:42]} 24. dxc5 {[%clk 0:00:45]}  Rxd1+ {[%clk 0:01:31]} 25. Rxd1 {[%clk 0:00:44]}  Bxc5 {[%clk 0:01:31]} 26. Qd2 {[%clk 0:00:33]}  Nxa4 {[%clk 0:01:21]} 27. Qd7 {[%clk 0:00:28]}  Qxd7 {[%clk 0:01:14]} 28. Rxd7 {[%clk 0:00:29]}  b5 {[%clk 0:01:07]} 29. Rb7 {[%clk 0:00:25]}  b4 {[%clk 0:00:59]} 30. Rc7 {[%clk 0:00:19]}  Bf8 {[%clk 0:00:35]} 31. Rxc4 {[%clk 0:00:17]}  Nxb2 {[%clk 0:00:35]} 32. Rc6 {[%clk 0:00:17]}  e5 {[%clk 0:00:20]} 33. Be6+ {[%clk 0:00:12]}  Kh8 {[%clk 0:00:20]} 34. Bd5 {[%clk 0:00:12]}  a4 {[%clk 0:00:18]} 35. Ra6 {[%clk 0:00:10]}  b3 {[%clk 0:00:16]} 36. Nc3 {[%clk 0:00:08]}  Rb8 {[%clk 0:00:10]} 37. Nxa4 {[%clk 0:00:07]}  Nxa4 {[%clk 0:00:11]} 38. Rxa4 {[%clk 0:00:08]}  b2 {[%clk 0:00:11]} 39. Ba2 {[%clk 0:00:03]}  b1=Q+ {[%clk 0:00:11]} 40. Bxb1 {[%clk 0:00:04]}  Rxb1+ {[%clk 0:00:12]} 41. Kg2 {[%clk 0:00:04]}  Rb8 {[%clk 0:00:13]} 42. Ra7 {[%clk 0:00:04]}  h6 {[%clk 0:00:12]} 43. Kh3 {[%clk 0:00:04]}  h5 {[%clk 0:00:11]} 44. f4 {[%clk 0:00:04]}  exf4 {[%clk 0:00:11]} 45. gxf4 {[%clk 0:00:05]}  Kh7 {[%clk 0:00:12]} 46. Ra4 {[%clk 0:00:00]}  Rb4 {[%clk 0:00:11]} 0-1

[Event "December 12 Late 2023"]
[Site "https://www.chess.com"]
[Date "2023.12.12"]
[Round "4"]
[White "Liu, Casper"]
[Black "Demina, Marya"]
[Result "1-0"]
[Board "125"]
[TimeControl "180+1"]
[WhiteFideId "1454153"]
[BlackFideId "4195671"]
[WhiteElo "2440"]
[BlackElo "2149"]
[WhiteTeam "DEN"]
[BlackTeam "RUS"]
[WhiteClock "0:00:55"]
[BlackClock "0:00:00"]

1. f4 {[%clk 0:03:00]}  c5 {[%clk 0:02:56]} 2. Nf3 {[%clk 0:03:01]}  Nc6 {[%clk 0:02:57]} 3. e3 {[%clk 0:03:01]}  d5 {[%clk 0:02:54]} 4. g3 {[%clk 0:03:02]}  g6 {[%clk 0:02:54]} 5. Bg2 {[%clk 0:03:02]}  Bg7 {[%clk 0:02:55]} 6. O-O {[%clk 0:03:03]}  Nf6 {[%clk 0:02:55]} 7. d3 {[%clk 0:03:03]}  O-O {[%clk 0:02:55]} 8. Nc3 {[%clk 0:03:04]}  Re8 {[%clk 0:02:56]} 9. Ne5 {[%clk 0:03:04]}  e6 {[%clk 0:02:21]} 10. d4 {[%clk 0:02:55]}  cxd4 {[%clk 0:02:20]} 11. exd4 {[%clk 0:02:56]}  Qb6 {[%clk 0:02:16]} 12. Ne2 {[%clk 0:02:41]}  Ne4 {[%clk 0:01:46]} 13. Kh1 {[%clk 0:02:40]}  f6 {[%clk 0:01:42]} 14. Nf3 {[%clk 0:02:21]}  Bd7 {[%clk 0:01:38]} 15. c3 {[%clk 0:02:19]}  e5 {[%clk 0:01:34]} 16. fxe5 {[%clk 0:02:19]}  fxe5 {[%clk 0:01:34]} 17. Be3 {[%clk 0:02:02]}  exd4 {[%clk 0:01:31]} 18. Nfxd4 {[%clk 0:01:50]}  Nxd4 {[%clk 0:01:16]} 19. Bxd4 {[%clk 0:01:46]}  Bxd4 {[%clk 0:01:04]} 20. Qxd4 {[%clk 0:01:47]}  Qxd4 {[%clk 0:01:03]} 21. Nxd4 {[%clk 0:01:47]}  Kg7 {[%clk 0:00:47]} 22. Kg1 {[%clk 0:01:44]}  Re7 {[%clk 0:00:35]} 23. Rad1 {[%clk 0:01:36]}  Rae8 {[%clk 0:00:36]} 24. Nb3 {[%clk 0:01:30]}  Bc6 {[%clk 0:00:35]} 25. Nd4 {[%clk 0:01:29]}  Bd7 {[%clk 0:00:35]} 26. Nb3 {[%clk 0:01:13]}  Bc6 {[%clk 0:00:35]} 27. Na5 {[%clk 0:01:14]}  h5 {[%clk 0:00:24]} 28. Rd4 {[%clk 0:01:07]}  Kh6 {[%clk 0:00:07]} 29. Rfd1 {[%clk 0:01:05]}  Kg7 {[%clk 0:00:07]} 30. c4 {[%clk 0:01:00]}  dxc4 {[%clk 0:00:04]} 31. Nxc6 {[%clk 0:01:00]}  bxc6 {[%clk 0:00:05]} 32. Rxc4 {[%clk 0:01:01]}  Re6 {[%clk 0:00:01]} 33. Bxe4 {[%clk 0:01:00]}  Rxe4 {[%clk 0:00:02]} 34. Rxc6 {[%clk 0:01:00]}  Re1+ {[%clk 0:00:02]} 35. Rxe1 {[%clk 0:00:59]}  Rxe1+ {[%clk 0:00:02]} 36. Kf2 {[%clk 0:01:00]}  Rb1 {[%clk 0:00:01]} 37. Rc7+ {[%clk 0:00:56]}  Kh6 {[%clk 0:00:02]} 38. Rb7 {[%clk 0:00:57]}  Rh1 {[%clk 0:00:02]} 39. h4 {[%clk 0:00:57]}  a5 {[%clk 0:00:00]} 40. a3 {[%clk 0:00:55]} 1-0

[Event "December 12 Late 2023"]
[Site "https://www.chess.com"]
[Date "2023.12.12"]
[Round "4"]
[White "Harrington, Steve"]
[Black "Lopusiewicz, Piotr"]
[Result "0-1"]
[Board "126"]
[TimeControl "180+1"]
[WhiteFideId "2038730"]
[BlackFideId "1116029"]
[WhiteElo "2137"]
[BlackElo "2440"]
[WhiteTeam "USA"]
[BlackTeam "POL"]
[WhiteClock "0:00:00"]
[BlackClock "0:00:10"]

1. e4 {[%clk 0:03:00]}  e5 {[%clk 0:02:59]} 2. d4 {[%clk 0:03:00]}  exd4 {[%clk 0:02:59]} 3. Nf3 {[%clk 0:03:01]}  Nc6 {[%clk 0:02:58]} 4. Nxd4 {[%clk 0:03:01]}  Nf6 {[%clk 0:02:56]} 5. Nc3 {[%clk 0:03:01]}  Bb4 {[%clk 0:02:51]} 6. Nxc6 {[%clk 0:03:01]}  bxc6 {[%clk 0:02:51]} 7. Bd3 {[%clk 0:03:01]}  O-O {[%clk 0:02:52]} 8. O-O {[%clk 0:03:00]}  d5 {[%clk 0:02:52]} 9. exd5 {[%clk 0:03:00]}  cxd5 {[%clk 0:02:52]} 10. Bg5 {[%clk 0:03:00]}  c6 {[%clk 0:02:51]} 11. Qf3 {[%clk 0:02:59]}  Be7 {[%clk 0:02:51]} 12. Na4 {[%clk 0:02:59]}  h6 {[%clk 0:02:49]} 13. Bf4 {[%clk 0:02:56]}  Bg4 {[%clk 0:02:42]} 14. Qe3 {[%clk 0:02:56]}  Re8 {[%clk 0:02:37]} 15. Qd2 {[%clk 0:02:48]}  c5 {[%clk 0:02:24]} 16. c4 {[%clk 0:02:33]}  d4 {[%clk 0:02:09]} 17. Rfe1 {[%clk 0:02:31]}  Qd7 {[%clk 0:02:06]} 18. b3 {[%clk 0:02:29]}  Bf8 {[%clk 0:02:04]} 19. Re5 {[%clk 0:02:07]}  Bd6 {[%clk 0:01:57]} 20. Nxc5 {[%clk 0:01:40]}  Qc7 {[%clk 0:01:35]} 21. Rxe8+ {[%clk 0:01:36]}  Rxe8 {[%clk 0:01:33]} 22. Bxd6 {[%clk 0:01:36]}  Qxd6 {[%clk 0:01:32]} 23. Na4 {[%clk 0:01:34]}  Qa3 {[%clk 0:01:21]} 24. Qb2 {[%clk 0:01:07]}  Qd6 {[%clk 0:01:08]} 25. h3 {[%clk 0:01:06]}  Bd7 {[%clk 0:01:07]} 26. c5 {[%clk 0:01:05]}  Qf4 {[%clk 0:00:56]} 27. Qc1 {[%clk 0:00:38]}  Qc7 {[%clk 0:00:53]} 28. Nb2 {[%clk 0:00:34]}  Bc6 {[%clk 0:00:49]} 29. b4 {[%clk 0:00:33]}  Bd5 {[%clk 0:00:28]} 30. Nc4 {[%clk 0:00:31]}  Nh5 {[%clk 0:00:22]} 31. a4 {[%clk 0:00:29]}  Nf4 {[%clk 0:00:21]} 32. Nd6 {[%clk 0:00:26]}  Nxd3 {[%clk 0:00:16]} 33. Nxe8 {[%clk 0:00:24]}  Qe5 {[%clk 0:00:13]} 34. Qd2 {[%clk 0:00:20]}  Nf4 {[%clk 0:00:10]} 35. Nd6 {[%clk 0:00:20]}  Qg5 {[%clk 0:00:09]} 36. f3 {[%clk 0:00:12]}  Nxh3+ {[%clk 0:00:09]} 37. Kf1 {[%clk 0:00:11]}  Qxd2 {[%clk 0:00:10]} 38. gxh3 {[%clk 0:00:00]}  Bxf3 {[%clk 0:00:10]} 0-1

[Event "December 12 Late 2023"]
[Site "https://www.chess.com"]
[Date "2023.12.12"]
[Round "4"]
[White "Novikova, Margarita"]
[Black "Sari, Yasin"]
[Result "0-1"]
[Board "128"]
[TimeControl "180+1"]
[WhiteFideId "14109689"]
[BlackFideId "6320902"]
[WhiteElo "2129"]
[BlackElo "2420"]
[WhiteTeam "GER"]
[BlackTeam "TUR"]
[WhiteClock "0:00:02"]
[BlackClock "0:00:15"]

1. e4 {[%clk 0:02:59]}  e5 {[%clk 0:02:59]} 2. Nf3 {[%clk 0:02:59]}  Nc6 {[%clk 0:02:59]} 3. Bc4 {[%clk 0:02:58]}  Nf6 {[%clk 0:02:58]} 4. d3 {[%clk 0:02:53]}  h6 {[%clk 0:02:57]} 5. a3 {[%clk 0:02:53]}  d6 {[%clk 0:02:55]} 6. h3 {[%clk 0:02:52]}  g6 {[%clk 0:02:55]} 7. O-O {[%clk 0:02:52]}  Bg7 {[%clk 0:02:55]} 8. c3 {[%clk 0:02:51]}  O-O {[%clk 0:02:53]} 9. Re1 {[%clk 0:02:51]}  d5 {[%clk 0:02:44]} 10. Bb5 {[%clk 0:02:45]}  dxe4 {[%clk 0:02:36]} 11. Bxc6 {[%clk 0:02:44]}  bxc6 {[%clk 0:02:14]} 12. Nxe5 {[%clk 0:02:42]}  exd3 {[%clk 0:02:15]} 13. Nxc6 {[%clk 0:02:29]}  Qd6 {[%clk 0:02:14]} 14. Nd4 {[%clk 0:02:18]}  Bb7 {[%clk 0:02:05]} 15. Re3 {[%clk 0:01:24]}  c5 {[%clk 0:01:59]} 16. Nb5 {[%clk 0:01:24]}  Qc6 {[%clk 0:01:56]} 17. Qf3 {[%clk 0:01:09]}  Qxb5 {[%clk 0:01:54]} 18. Qg3 {[%clk 0:01:05]}  c4 {[%clk 0:01:36]} 19. Re5 {[%clk 0:01:02]}  Qc6 {[%clk 0:01:28]} 20. f3 {[%clk 0:00:58]}  Rfe8 {[%clk 0:01:15]} 21. Rxe8+ {[%clk 0:00:48]}  Rxe8 {[%clk 0:01:16]} 22. Nd2 {[%clk 0:00:45]}  Nh5 {[%clk 0:01:04]} 23. Qf2 {[%clk 0:00:44]}  Nf4 {[%clk 0:00:59]} 24. Ne4 {[%clk 0:00:42]}  Ne2+ {[%clk 0:00:58]} 25. Kh1 {[%clk 0:00:40]}  Rxe4 {[%clk 0:00:49]} 26. fxe4 {[%clk 0:00:38]}  Qxe4 {[%clk 0:00:50]} 27. Be3 {[%clk 0:00:33]}  Be5 {[%clk 0:00:42]} 28. Rf1 {[%clk 0:00:28]}  Ng3+ {[%clk 0:00:41]} 29. Kg1 {[%clk 0:00:27]}  Nxf1 {[%clk 0:00:41]} 30. Kxf1 {[%clk 0:00:27]}  Qf5 {[%clk 0:00:23]} 31. Bxh6 {[%clk 0:00:24]}  Qxf2+ {[%clk 0:00:20]} 32. Kxf2 {[%clk 0:00:25]}  f6 {[%clk 0:00:20]} 33. Be3 {[%clk 0:00:25]}  a6 {[%clk 0:00:19]} 34. g4 {[%clk 0:00:22]}  Kf7 {[%clk 0:00:18]} 35. h4 {[%clk 0:00:22]}  Ke6 {[%clk 0:00:18]} 36. h5 {[%clk 0:00:22]}  gxh5 {[%clk 0:00:19]} 37. gxh5 {[%clk 0:00:22]}  f5 {[%clk 0:00:20]} 38. h6 {[%clk 0:00:20]}  f4 {[%clk 0:00:19]} 39. Bd2 {[%clk 0:00:20]}  Be4 {[%clk 0:00:19]} 40. a4 {[%clk 0:00:14]}  Kf6 {[%clk 0:00:19]} 41. a5 {[%clk 0:00:12]}  Kg5 {[%clk 0:00:19]} 42. h7 {[%clk 0:00:10]}  Bxh7 {[%clk 0:00:18]} 43. Kf3 {[%clk 0:00:11]}  Bf5 {[%clk 0:00:16]} 44. b4 {[%clk 0:00:09]}  cxb3 {[%clk 0:00:16]} 45. Bc1 {[%clk 0:00:07]}  Bxc3 {[%clk 0:00:14]} 46. Bxf4+ {[%clk 0:00:07]}  Kg6 {[%clk 0:00:14]} 47. Bc1 {[%clk 0:00:07]}  d2 {[%clk 0:00:14]} 48. Bxd2 {[%clk 0:00:06]}  Bxd2 {[%clk 0:00:14]} 49. Ke2 {[%clk 0:00:02]}  Bxa5 {[%clk 0:00:15]} 0-1

[Event "December 12 Late 2023"]
[Site "https://www.chess.com"]
[Date "2023.12.12"]
[Round "4"]
[White "Avila Rodriguez, Joshua Ad"]
[Black "Oliveira, Tiago Batista"]
[Result "1-0"]
[Board "129"]
[TimeControl "180+1"]
[WhiteFideId "5126444"]
[BlackFideId "2108291"]
[WhiteElo "2414"]
[BlackElo "2093"]
[WhiteTeam "MEX"]
[BlackTeam "BRA"]
[WhiteClock "0:00:02"]
[BlackClock "0:00:00"]

1. e4 {[%clk 0:02:59]}  e5 {[%clk 0:02:59]} 2. Nf3 {[%clk 0:03:00]}  Nc6 {[%clk 0:02:59]} 3. Bb5 {[%clk 0:03:00]}  a6 {[%clk 0:03:00]} 4. Ba4 {[%clk 0:03:00]}  Nf6 {[%clk 0:03:00]} 5. O-O {[%clk 0:03:00]}  Nxe4 {[%clk 0:03:00]} 6. d4 {[%clk 0:02:59]}  b5 {[%clk 0:03:00]} 7. Bb3 {[%clk 0:03:00]}  d5 {[%clk 0:03:01]} 8. dxe5 {[%clk 0:03:00]}  Be6 {[%clk 0:03:01]} 9. c3 {[%clk 0:03:00]}  Bc5 {[%clk 0:03:01]} 10. Nbd2 {[%clk 0:02:59]}  O-O {[%clk 0:03:01]} 11. Bc2 {[%clk 0:02:59]}  Bf5 {[%clk 0:03:01]} 12. Nb3 {[%clk 0:02:45]}  Bg6 {[%clk 0:03:00]} 13. Bxe4 {[%clk 0:02:36]}  dxe4 {[%clk 0:03:00]} 14. Nxc5 {[%clk 0:02:31]}  Qxd1 {[%clk 0:02:55]} 15. Rxd1 {[%clk 0:02:31]}  exf3 {[%clk 0:02:55]} 16. Bf4 {[%clk 0:02:27]}  Rfe8 {[%clk 0:02:46]} 17. Rd5 {[%clk 0:02:13]}  fxg2 {[%clk 0:02:30]} 18. Rad1 {[%clk 0:01:57]}  Ne7 {[%clk 0:02:25]} 19. Rd7 {[%clk 0:01:57]}  c6 {[%clk 0:02:22]} 20. R7d6 {[%clk 0:01:31]}  Bh5 {[%clk 0:01:58]} 21. R1d3 {[%clk 0:01:22]}  Ng6 {[%clk 0:01:54]} 22. Bg3 {[%clk 0:01:16]}  h6 {[%clk 0:01:29]} 23. Kxg2 {[%clk 0:01:09]}  Nxe5 {[%clk 0:01:22]} 24. Bxe5 {[%clk 0:01:09]}  Rxe5 {[%clk 0:01:22]} 25. Rxc6 {[%clk 0:01:04]}  Be2 {[%clk 0:01:07]} 26. Rg3 {[%clk 0:00:51]}  Rd8 {[%clk 0:01:05]} 27. Nxa6 {[%clk 0:00:49]}  Rd1 {[%clk 0:01:04]} 28. Nb4 {[%clk 0:00:43]}  Rf5 {[%clk 0:01:03]} 29. Re3 {[%clk 0:00:23]}  Bf1+ {[%clk 0:00:42]} 30. Kg3 {[%clk 0:00:22]}  Rg5+ {[%clk 0:00:14]} 31. Kf4 {[%clk 0:00:21]}  Bg2 {[%clk 0:00:12]} 32. h4 {[%clk 0:00:20]}  Bxc6 {[%clk 0:00:03]} 33. hxg5 {[%clk 0:00:20]}  hxg5+ {[%clk 0:00:04]} 34. Kxg5 {[%clk 0:00:19]}  Bd7 {[%clk 0:00:04]} 35. Rd3 {[%clk 0:00:16]}  Rg1+ {[%clk 0:00:03]} 36. Kf4 {[%clk 0:00:17]}  Be6 {[%clk 0:00:03]} 37. Ke3 {[%clk 0:00:17]}  Rg4 {[%clk 0:00:03]} 38. Rd4 {[%clk 0:00:15]}  Rg1 {[%clk 0:00:03]} 39. Kd2 {[%clk 0:00:15]}  Rb1 {[%clk 0:00:03]} 40. Kc2 {[%clk 0:00:14]}  Rf1 {[%clk 0:00:03]} 41. Rf4 {[%clk 0:00:14]}  g5 {[%clk 0:00:03]} 42. Rf3 {[%clk 0:00:12]}  Kg7 {[%clk 0:00:03]} 43. Nd3 {[%clk 0:00:12]}  Kg6 {[%clk 0:00:03]} 44. Ne5+ {[%clk 0:00:12]}  Kg7 {[%clk 0:00:03]} 45. a3 {[%clk 0:00:11]}  f5 {[%clk 0:00:03]} 46. Nd3 {[%clk 0:00:10]}  f4 {[%clk 0:00:03]} 47. Nc5 {[%clk 0:00:08]}  Bf5+ {[%clk 0:00:03]} 48. Kb3 {[%clk 0:00:08]}  Rb1 {[%clk 0:00:03]} 49. a4 {[%clk 0:00:05]}  bxa4+ {[%clk 0:00:03]} 50. Nxa4 {[%clk 0:00:06]}  Kg6 {[%clk 0:00:02]} 51. c4 {[%clk 0:00:06]}  Be4 {[%clk 0:00:02]} 52. Rc3 {[%clk 0:00:06]}  Rf1 {[%clk 0:00:02]} 53. c5 {[%clk 0:00:06]}  Bc6 {[%clk 0:00:02]} 54. f3 {[%clk 0:00:03]}  Rxf3 {[%clk 0:00:02]} 55. Nb6 {[%clk 0:00:02]}  Rxc3+ {[%clk 0:00:01]} 56. Kxc3 {[%clk 0:00:02]}  f3 {[%clk 0:00:02]} 57. Kd2 {[%clk 0:00:03]}  g4 {[%clk 0:00:02]} 58. Ke1 {[%clk 0:00:02]}  g3 {[%clk 0:00:02]} 59. Kf1 {[%clk 0:00:02]}  f2 {[%clk 0:00:02]} 60. b3 {[%clk 0:00:02]}  Bb5+ {[%clk 0:00:02]} 61. Nc4 {[%clk 0:00:03]}  Bc6 {[%clk 0:00:01]} 62. Ne3 {[%clk 0:00:02]}  Kg5 {[%clk 0:00:00]} 63. Nc4 {[%clk 0:00:02]} 1-0

[Event "December 12 Late 2023"]
[Site "https://www.chess.com"]
[Date "2023.12.12"]
[Round "4"]
[White "Zakarian, David"]
[Black "Desideri, Ricardo Maruchi"]
[Result "1-0"]
[Board "131"]
[TimeControl "180+1"]
[WhiteFideId "13301276"]
[BlackFideId "2110440"]
[WhiteElo "2404"]
[BlackElo "2020"]
[WhiteTeam "ARM"]
[BlackTeam "BRA"]
[WhiteClock "0:01:12"]
[BlackClock "0:00:00"]

1. d4 {[%clk 0:02:55]}  Nf6 {[%clk 0:02:59]} 2. c4 {[%clk 0:02:56]}  c5 {[%clk 0:02:58]} 3. d5 {[%clk 0:02:56]}  e6 {[%clk 0:02:57]} 4. Nc3 {[%clk 0:02:55]}  exd5 {[%clk 0:02:57]} 5. cxd5 {[%clk 0:02:56]}  d6 {[%clk 0:02:57]} 6. Nf3 {[%clk 0:02:57]}  g6 {[%clk 0:02:57]} 7. Bf4 {[%clk 0:02:57]}  a6 {[%clk 0:02:53]} 8. a4 {[%clk 0:02:57]}  Bg7 {[%clk 0:02:50]} 9. h3 {[%clk 0:02:57]}  O-O {[%clk 0:02:50]} 10. e3 {[%clk 0:02:58]}  Re8 {[%clk 0:02:42]} 11. Be2 {[%clk 0:02:56]}  Nbd7 {[%clk 0:02:25]} 12. O-O {[%clk 0:02:54]}  Ne4 {[%clk 0:02:17]} 13. Nxe4 {[%clk 0:02:44]}  Rxe4 {[%clk 0:02:15]} 14. Qc2 {[%clk 0:02:44]}  Rxf4 {[%clk 0:02:12]} 15. exf4 {[%clk 0:02:43]}  Nf6 {[%clk 0:02:05]} 16. Rfd1 {[%clk 0:02:37]}  Qe7 {[%clk 0:01:52]} 17. Bd3 {[%clk 0:02:28]}  Nh5 {[%clk 0:01:50]} 18. f5 {[%clk 0:02:26]}  Nf4 {[%clk 0:01:43]} 19. fxg6 {[%clk 0:02:22]}  hxg6 {[%clk 0:01:41]} 20. Re1 {[%clk 0:02:17]}  Qd8 {[%clk 0:01:10]} 21. Re4 {[%clk 0:01:47]}  Nxd3 {[%clk 0:01:05]} 22. Qxd3 {[%clk 0:01:48]}  Bf5 {[%clk 0:01:05]} 23. Rb1 {[%clk 0:01:40]}  Qf6 {[%clk 0:00:50]} 24. b3 {[%clk 0:01:30]}  Bh6 {[%clk 0:00:19]} 25. Rbe1 {[%clk 0:01:27]}  Kg7 {[%clk 0:00:17]} 26. Qc4 {[%clk 0:01:23]}  Bxe4 {[%clk 0:00:16]} 27. Rxe4 {[%clk 0:01:24]}  Rb8 {[%clk 0:00:13]} 28. a5 {[%clk 0:01:23]}  b5 {[%clk 0:00:10]} 29. axb6 {[%clk 0:01:23]}  Rxb6 {[%clk 0:00:10]} 30. Re8 {[%clk 0:01:20]}  Rb4 {[%clk 0:00:08]} 31. Qxa6 {[%clk 0:01:13]}  Qa1+ {[%clk 0:00:00]} 32. Qxa1+ {[%clk 0:01:12]} 1-0

[Event "December 12 Late 2023"]
[Site "https://www.chess.com"]
[Date "2023.12.12"]
[Round "4"]
[White "Kappeler, Kaspar"]
[Black "Narva, Mai"]
[Result "1/2-1/2"]
[Board "134"]
[TimeControl "180+1"]
[WhiteFideId "1309072"]
[BlackFideId "4500512"]
[WhiteElo "2307"]
[BlackElo "2547"]
[WhiteTeam "SUI"]
[BlackTeam "EST"]
[WhiteClock "0:00:03"]
[BlackClock "0:00:11"]

1. c4 {[%clk 0:03:00]}  g6 {[%clk 0:02:52]} 2. Nf3 {[%clk 0:03:00]}  Bg7 {[%clk 0:02:53]} 3. g3 {[%clk 0:03:00]}  c5 {[%clk 0:02:53]} 4. Bg2 {[%clk 0:03:01]}  Nc6 {[%clk 0:02:54]} 5. O-O {[%clk 0:03:01]}  e5 {[%clk 0:02:54]} 6. Nc3 {[%clk 0:02:59]}  Nge7 {[%clk 0:02:55]} 7. d3 {[%clk 0:02:59]}  O-O {[%clk 0:02:55]} 8. Rb1 {[%clk 0:02:57]}  d6 {[%clk 0:02:56]} 9. a3 {[%clk 0:02:56]}  a5 {[%clk 0:02:56]} 10. Bd2 {[%clk 0:02:52]}  Be6 {[%clk 0:02:57]} 11. Ng5 {[%clk 0:02:50]}  Bg4 {[%clk 0:02:56]} 12. h3 {[%clk 0:02:48]}  Bd7 {[%clk 0:02:57]} 13. Nb5 {[%clk 0:02:30]}  Nc8 {[%clk 0:02:53]} 14. Ne4 {[%clk 0:02:25]}  Bf5 {[%clk 0:02:48]} 15. b4 {[%clk 0:02:20]}  axb4 {[%clk 0:02:47]} 16. axb4 {[%clk 0:02:21]}  cxb4 {[%clk 0:02:47]} 17. Bxb4 {[%clk 0:02:20]}  Nxb4 {[%clk 0:02:46]} 18. Rxb4 {[%clk 0:02:20]}  Qd7 {[%clk 0:02:44]} 19. Nec3 {[%clk 0:02:13]}  Bxh3 {[%clk 0:02:38]} 20. Bxh3 {[%clk 0:02:01]}  Qxh3 {[%clk 0:02:38]} 21. Nc7 {[%clk 0:02:01]}  Rb8 {[%clk 0:02:35]} 22. Qb3 {[%clk 0:01:35]}  Ne7 {[%clk 0:02:02]} 23. Rxb7 {[%clk 0:01:26]}  Rxb7 {[%clk 0:01:58]} 24. Qxb7 {[%clk 0:01:26]}  Nf5 {[%clk 0:01:57]} 25. Qg2 {[%clk 0:01:17]}  Qh6 {[%clk 0:01:55]} 26. Ne4 {[%clk 0:01:13]}  Nd4 {[%clk 0:01:53]} 27. f3 {[%clk 0:00:37]}  Rd8 {[%clk 0:01:33]} 28. Kf2 {[%clk 0:00:35]}  f5 {[%clk 0:01:31]} 29. Rh1 {[%clk 0:00:34]}  fxe4 {[%clk 0:01:16]} 30. Rxh6 {[%clk 0:00:34]}  exf3 {[%clk 0:01:09]} 31. Qh3 {[%clk 0:00:29]}  fxe2 {[%clk 0:01:07]} 32. Ne6 {[%clk 0:00:21]}  Bxh6 {[%clk 0:00:55]} 33. Qxh6 {[%clk 0:00:17]}  Nxe6 {[%clk 0:00:53]} 34. Kxe2 {[%clk 0:00:17]}  Rf8 {[%clk 0:00:52]} 35. Qh3 {[%clk 0:00:16]}  Nd4+ {[%clk 0:00:51]} 36. Kd2 {[%clk 0:00:16]}  Rf6 {[%clk 0:00:45]} 37. Kc3 {[%clk 0:00:16]}  h5 {[%clk 0:00:44]} 38. Kb4 {[%clk 0:00:14]}  Nf5 {[%clk 0:00:44]} 39. g4 {[%clk 0:00:12]}  hxg4 {[%clk 0:00:41]} 40. Qxg4 {[%clk 0:00:13]}  Kg7 {[%clk 0:00:41]} 41. Kb5 {[%clk 0:00:12]}  Nd4+ {[%clk 0:00:37]} 42. Kb6 {[%clk 0:00:10]}  Ne6 {[%clk 0:00:31]} 43. Kc6 {[%clk 0:00:07]}  Nc5 {[%clk 0:00:20]} 44. Kc7 {[%clk 0:00:04]}  Rf4 {[%clk 0:00:17]} 45. Qh3 {[%clk 0:00:03]}  Rf6 {[%clk 0:00:14]} 46. Qg3 {[%clk 0:00:01]}  Re6 {[%clk 0:00:13]} 47. Qe3 {[%clk 0:00:02]}  Rf6 {[%clk 0:00:12]} 48. Qg3 {[%clk 0:00:02]}  Kf7 {[%clk 0:00:11]} 49. Qh3 {[%clk 0:00:02]}  Kg7 {[%clk 0:00:11]} 50. Qg3 {[%clk 0:00:03]} 1/2-1/2